[Event "German Championship Women 2022"]
[Site "Magdeburg"]
[Date "2022.08.18"]
[Round "7.7"]
[White "Basovskiy, Jana"]
[Black "Bluebaum, Johanna"]
[Result "1/2-1/2"]
[ECO "C00"]
[WhiteElo "1867"]
[BlackElo "2013"]
[Annotator "NA RC"]
[PlyCount "108"]
[EventDate "2022.08.14"]
[EventType "swiss"]
[EventCountry "GER"]
[SourceTitle "playchess.com"]
[Source "ChessBase"]
[SourceQuality "1"]
[TimeControl "40/5400+30:1800+30"]

1. e4 e6 {[%emt 0:00:03]} 2. d3 {[%emt 0:00:06]} d5 {[%emt 0:00:05]} 3. Nd2 {[%emt 0:00:03]} Nf6 {[%emt 0:00:07]} 4. Ngf3 {[%emt 0:00:06]} b6 {[%emt 0:00:46]} 5. c3 {[%emt 0:00:00]} Be7 {[%emt 0:00:17]} 6. Qa4+ {[%emt 0:00:16]} Nfd7 {[%emt 0:05:23]} 7. d4 {[%emt 0:06:56]} c5 {[%emt 0:02:10]} 8. Bd3 {[%emt 0:07:06]} O-O {[%emt 0:05:35]} 9. O-O {[%emt 0:07:30]} a5 {[%emt 0:01:00]} 10. Re1 {[%emt 0:00:09]} Ba6 {[%emt 0:11:53]} 11. Bb1 Re8 12. Qc2 {[%emt 0:09:25]} Nf8 {[%emt 0:00:59]} 13. Nf1 {[%emt 0:02:51]} Nc6 14. Be3 {[%emt 0:13:17]} Ng6 {[%emt 0:08:28]} 15. dxc5 {[%emt 0:07:04]} bxc5 {[%emt 0:00:37]} 16. exd5 {[%emt 0:01:12]} exd5 {[%emt 0:00:30]} 17. Ng3 {[%emt 0:01:42]} Qb6 {[%emt 0:17:37]} 18. Rd1 {[%emt 0:09:13]} Rad8 {[%emt 0:00:23]} 19. b3 {[%emt 0:08:23]} d4 {[%emt 0:03:18]} 20. cxd4 {[%emt 0:00:29]} cxd4 {[%emt 0:00:26]} 21. Bg5 {[%emt 0:01:47]} f6 {[%emt 0:02:30]} 22. Bd2 {[%emt 0:03:36]} d3 {[%emt 0:00:22]} 23. Qb2 {[%emt 0:00:31]} Bc5 24. Bc3 {[%emt 0:02:15]} Nce5 {[%emt 0:02:50]} 25. Nxe5 {[%emt 0:01:23]} fxe5 {[%emt 0:06:58]} 26. Ne4 {[%emt 0:01:55]} Bd4 {[%emt 0:00:31]} 27. Bxd3 {[%emt 0:04:35]} Bxd3 {[%emt 0:06:18]} 28. Rxd3 {[%emt 0:00:06]} Nf4 {[%emt 0:01:52]} 29. Rg3 {[%emt 0:04:02]} Qa6 {[%emt 0:05:04]} 30. Re1 {[%emt 0:00:34]} Qc6 31. h3 {[%emt 0:00:57]} Re6 {[%emt 0:09:11]} 32. Kh2 {[%emt 0:06:01]} Rg6 {[%emt 0:00:51]} 33. Bxd4 {[%emt 0:01:23]} Rxd4 {[%emt 0:02:27]} 34. Qc3 {[%emt 0:01:01]} Qa8 {[%emt 0:01:54]} 35. Rxg6 {[%emt 0:00:11]} Nxg6 36. f3 h6 {[%emt 0:03:25]} 37. Rc1 {[%emt 0:01:12]} Qf8 {[%emt 0:01:36]} 38. Qc8 {[%emt 0:00:53]} Rd8 {[%emt 0:00:05]} 39. Qg4 {[%emt 0:00:39]} Kh7 {[%emt 0:01:50]} 40. Rc6 {[%emt 0:00:27]} Nf4 {[%emt 0:01:14]} 41. Rc5 {[%emt 0:08:54]} Rd2 {[%emt 0:02:50]} 42. Nxd2 {[%emt 0:00:46]} Qxc5 {[%emt 0:00:29]} 43. Qf5+ {[%emt 0:00:33]} Kg8 {[%emt 0:03:24]} 44. Ne4 {[%emt 0:01:01]} Qc7 {[%emt 0:01:27]} 45. Nd2 {[%emt 0:05:15]} Qc5 {[%emt 0:01:02]} 46. Nc4 {[%emt 0:05:36]} Qf2 {[%emt 0:01:38]} 47. Qc8+ {[%emt 0:00:16]} Kh7 {[%emt 0:00:27]} 48. Qg4 {[%emt 0:00:07]} Ne2 {[%emt 0:10:30]} 49. Qf5+ {[%emt 0:02:23]} Kg8 {[%emt 0:00:25]} 50. Qe6+ {[%emt 0:02:19]} Kh8 {[%emt 0:00:35]} 51. Qc8+ {[%emt 0:00:33]} Kh7 {[%emt 0:00:05]} 52. Qf5+ {[%emt 0:00:05]} Kg8 {[%emt 0:00:04]} 53. Qe6+ {[%emt 0:00:05]} Kf8 {[%emt 0:00:08]} 54. Qd6+ {[%emt 0:00:55]} Kg8 {[%emt 0:00:36]} 1/2-1/2

[Event "German Championship Women 2022"]
[Site "Magdeburg"]
[Date "2022.08.18"]
[Round "7.8"]
[White "Zhou, Lepu Coco"]
[Black "Perez Celis, Alba"]
[Result "1-0"]
[ECO "C78"]
[WhiteElo "1986"]
[BlackElo "1816"]
[Annotator "NA RC"]
[PlyCount "121"]
[EventDate "2022.08.14"]
[EventType "swiss"]
[EventCountry "GER"]
[SourceTitle "playchess.com"]
[Source "ChessBase"]
[SourceQuality "1"]
[TimeControl "40/5400+30:1800+30"]

1. e4 {[%emt 0:00:02]} e5 {[%emt 0:00:11]} 2. Nf3 {[%emt 0:00:06]} Nc6 {[%emt 0:00:23]} 3. Bb5 {[%emt 0:00:14]} a6 {[%emt 0:00:26]} 4. Ba4 {[%emt 0:00:04]} Nf6 {[%emt 0:00:09]} 5. O-O {[%emt 0:00:11]} b5 {[%emt 0:00:08]} 6. Bb3 {[%emt 0:00:06]} Bc5 {[%emt 0:00:19]} 7. c3 {[%emt 0:00:22]} d6 {[%emt 0:00:25]} 8. d4 {[%emt 0:01:36]} Bb6 {[%emt 0:00:36]} 9. h3 {[%emt 0:00:13]} Bb7 {[%emt 0:00:18]} 10. Re1 {[%emt 0:01:07]} Ne7 {[%emt 0:03:30]} 11. Nbd2 {[%emt 0:06:03]} Ng6 {[%emt 0:00:24]} 12. a4 {[%emt 0:01:17]} O-O {[%emt 0:04:51]} 13. d5 {[%emt 0:06:24]} c5 {[%emt 0:00:42]} 14. Nf1 {[%emt 0:01:44]} c4 {[%emt 0:00:16]} 15. Bc2 {[%emt 0:00:16]} Ra7 {[%emt 0:14:35]} 16. Be3 {[%emt 0:03:07]} Bc8 {[%emt 0:01:02]} 17. axb5 {[%emt 0:01:01]} a5 {[%emt 0:22:21]} 18. N1d2 {[%emt 0:02:50]} Bxe3 {[%emt 0:06:16]} 19. Rxe3 {[%emt 0:00:21]} Nf4 {[%emt 0:03:59]} 20. Nxc4 {[%emt 0:05:12]} Bxh3 {[%emt 0:00:14]} 21. gxh3 {[%emt 0:07:49]} Nxh3+ {[%emt 0:00:02]} 22. Kf1 {[%emt 0:25:17]} Ng4 {[%emt 0:00:08]} 23. Re1 {[%emt 0:01:18]} Qf6 {[%emt 0:03:25]} 24. Ne3 h5 {[%emt 0:20:21]} 25. Qe2 {[%emt 0:18:14]} Nf4 {[%emt 0:01:23]} 26. Qd2 {[%emt 0:00:24]} Qg6 {[%emt 0:07:49]} 27. Rec1 {[%emt 0:04:17]} h4 {[%emt 0:01:06]} 28. Nf5 {[%emt 0:06:56]} Qh5 {[%emt 0:03:50]} 29. N3xh4 {[%emt 0:03:23]} g6 {[%emt 0:03:56]} 30. f3 {[%emt 0:00:09]} Nf6 {[%emt 0:01:07]} 31. Qf2 {[%emt 0:01:25]} gxf5 {[%emt 0:00:14]} 32. Nxf5 {[%emt 0:01:43]} Qh1+ {[%emt 0:00:05]} 33. Qg1+ {[%emt 0:00:17]} Qxg1+ {[%emt 0:00:15]} 34. Kxg1 {[%emt 0:00:05]} Ne2+ {[%emt 0:00:04]} 35. Kf2 {[%emt 0:00:09]} Nxc1 {[%emt 0:00:06]} 36. Rxc1 {[%emt 0:00:08]} Rd8 {[%emt 0:02:13]} 37. Ra1 {[%emt 0:01:00]} Nh5 {[%emt 0:00:31]} 38. Rg1+ {[%emt 0:01:58]} Kh7 {[%emt 0:00:44]} 39. Rh1 {[%emt 0:01:46]} Kg6 {[%emt 0:00:02]} 40. Bd1 {[%emt 0:00:27]} Rh8 {[%emt 0:01:28]} 41. Nxd6 {[%emt 0:01:46]} Raa8 {[%emt 0:05:33]} 42. b6 {[%emt 0:02:56]} Nf4 {[%emt 0:04:59]} 43. b7 {[%emt 0:03:25]} Rab8 {[%emt 0:01:30]} 44. Rxh8 {[%emt 0:00:31]} Rxh8 {[%emt 0:00:09]} 45. Nc4 {[%emt 0:01:18]} Kf6 {[%emt 0:07:15]} 46. Nxa5 {[%emt 0:02:15]} Rh2+ {[%emt 0:00:18]} 47. Kg1 {[%emt 0:01:03]} Rxb2 {[%emt 0:00:15]} 48. Nb3 {[%emt 0:03:13]} Rg2+ {[%emt 0:04:33]} 49. Kf1 {[%emt 0:00:34]} Rg8 {[%emt 0:00:01]} 50. Nc5 {[%emt 0:00:24]} Ke7 {[%emt 0:01:48]} 51. Na6 {[%emt 0:00:22]} Rh8 {[%emt 0:05:33]} 52. b8=Q {[%emt 0:03:09]} Rxb8 {[%emt 0:01:48]} 53. Nxb8 {[%emt 0:00:07]} Kd6 {[%emt 0:00:02]} 54. Na6 {[%emt 0:00:50]} f6 {[%emt 0:01:32]} 55. c4 {[%emt 0:01:06]} Nd3 {[%emt 0:00:53]} 56. Ke2 {[%emt 0:01:09]} Nf4+ {[%emt 0:00:51]} 57. Kd2 {[%emt 0:00:38]} Nh3 {[%emt 0:00:51]} 58. c5+ {[%emt 0:00:45]} Kd7 {[%emt 0:00:10]} 59. Ba4+ {[%emt 0:00:27]} Kc8 {[%emt 0:00:20]} 60. d6 {[%emt 0:00:55]} Ng5 {[%emt 0:00:26]} 61. c6 {[%emt 0:01:47]} 1-0

[Event "German Championship Women 2022"]
[Site "Magdeburg"]
[Date "2022.08.18"]
[Round "7.9"]
[White "Peglau, Dora"]
[Black "Just, Anita"]
[Result "1-0"]
[ECO "A40"]
[WhiteElo "1920"]
[BlackElo "1905"]
[Annotator "TA"]
[PlyCount "123"]
[EventDate "2022.08.14"]
[EventType "swiss"]
[EventCountry "GER"]
[SourceTitle "playchess.com"]
[Source "ChessBase"]
[SourceQuality "1"]
[TimeControl "40/5400+30:1800+30"]

{[%evp 9,123,16,33,13,19,21,18,7,25,26,27,7,15,-28,-29,-34,-33,-33,-7,-58,-33,-21,-28,-39,-40,-87,0,0,35,22,29,-23,125,128,126,126,150,120,120,126,118,111,151,85,96,8,131,65,55,0,0,0,0,5,6,4,4,6,35,25,35,30,85,74,64,13,13,13,13,13,13,13,221,221,214,207,234,114,116,126,139,117,152,74,80,0,0,0,0,0,0,0,0,0,0,0,0,0,0,0,29976,29977,29977,29978,29978,29979,29978,29980,29994,29995,29996,29997,29997,29998,29998,29999]} 1. d4 {[%emt 0:00:02]} e6 {[%emt 0:00:04]} 2. Nf3 {[%emt 0:01:19]} f5 {[%emt 0:00:22]} 3. Bf4 {[%emt 0:00:25]} Nf6 {[%emt 0:00:30]} 4. e3 {[%emt 0:00:21]} b6 {[%emt 0:02:15]} 5. c4 {[%emt 0:02:02]} Bb4+ {[%emt 0:02:09]} 6. Nbd2 {[%emt 0:00:39] A80: Dutch Defence: Unusual White second moves.} Bb7 {[%emt 0:00:23]} 7. Bd3 {[%emt 0:02:34]} O-O {[%emt 0:01:48]} 8. O-O {[%emt 0:02:17] The position is equal.} Bxd2 {[%emt 0:00:47]} 9. Nxd2 {[%emt 0:02:46]} d6 {[%emt 0:04:53] [#]} 10. Qc2 $146 {[%emt 0:05:34]} ({Predecessor:} 10. Bg3 Nbd7 11. Re1 Ne4 12. Nxe4 fxe4 13. Be2 a5 14. b3 Qe7 15. a3 h6 16. b4 axb4 17. axb4 Rxa1 18. Qxa1 {½-½ (40) Sjugirov,S (2624)-Bareev,E (2663) Novosibirsk 2012}) 10... Nc6 {[%emt 0:05:55]} 11. Bg3 {[%emt 0:08:00]} Nb4 {[%emt 0:04:49]} 12. Qc3 {[%emt 0:00:15]} Nxd3 {[%emt 0:00:22]} 13. Qxd3 {[%emt 0:00:02]} Qe8 {[%emt 0:05:53]} 14. c5 {[%emt 0:01:59]} (14. f3 $11) 14... dxc5 {[%emt 0:12:34]} 15. dxc5 {[%emt 0:01:01]} Rd8 {[%emt 0:10:33]} 16. Qc2 {[%emt 0:04:09]} Qc6 {[%emt 0:04:41][%csl Gb7,LRc5,LRg2][%cal Rc6g2] [#]} 17. f3 {[%emt 0:04:52]} (17. Nf3 $15) 17... Rd5 {[%emt 0:07:00]} ({Much worse is} 17... bxc5 $6 18. Rfe1 $11) ({Much weaker is} 17... Qxc5 18. Qxc5 bxc5 19. Nb3 $11) (17... Nd5 $17 18. Bf2 Ba6) 18. Nb3 $11 {[%emt 0:05:12]} Rfd8 {[%emt 0:06:19][%cal Rb6c5]} 19. Nd4 {[%emt 0:05:51]} Qe8 {[%emt 0:05:04]} 20. c6 {[%emt 0:11:42]} (20. Qb3 $142) 20... Rc5 {[%emt 0:09:19]} (20... Ba6 $11 21. Rfe1 (21. Bxc7 $2 Rc8 $17) 21... f4 22. Bxf4 e5) 21. Qb3 $16 {[%emt 0:02:49] White is more active.} Bxc6 {[%emt 0:03:00]} 22. Qxe6+ {[%emt 0:02:02]} ({Don't go for} 22. Nxe6 $2 Bd5 23. Nxg7 Kxg7 $19) 22... Qf7 {[%emt 0:02:01]} 23. Bxc7 {[%emt 0:10:16]} Rd7 {[%emt 0:02:36]} 24. Qxf7+ {[%emt 0:03:08]} Kxf7 {[%emt 0:00:16]} 25. b4 {[%emt 0:02:02]} Rcd5 {[%emt 0:03:36]} 26. Rac1 {[%emt 0:12:39]} ({Better is} 26. Bxb6 $1 Ba4 27. Bc5) 26... Ba4 {[%emt 0:00:55]} 27. Rc3 {[%emt 0:01:35]} (27. Rfe1 $16) 27... Ne8 {[%emt 0:00:47]} (27... Rxd4 $11 28. exd4 Nd5) 28. Rfc1 {[%emt 0:01:58]} (28. Bf4 $16) 28... g5 $14 {[%emt 0:00:32][%cal Of5f4]} 29. f4 {[%emt 0:02:33]} ({White should try} 29. g3 $14) 29... Nxc7 $11 {[%emt 0:02:04]} 30. Rxc7 {[%emt 0:00:05]} gxf4 {[%emt 0:00:31]} 31. Rxd7+ {[%emt 0:00:27]} Bxd7 {[%emt 0:00:50][%mdl 4096] Endgame KRB-KRN} 32. Kf2 {[%emt 0:01:04]} fxe3+ {[%emt 0:00:26]} 33. Kxe3 {[%emt 0:00:01]} Kg6 {[%emt 0:00:50]} 34. Rc7 {[%emt 0:01:16]} a5 {[%emt 0:00:18]} 35. Rb7 {[%emt 0:00:43]} Re5+ {[%emt 0:00:23]} (35... Rd6 $11) 36. Kd3 {[%emt 0:00:32]} Bb5+ {[%emt 0:00:29]} 37. Nxb5 {[%emt 0:00:35]} (37. Kd2 $14 Bf1 38. Rxb6+ Kh5 39. g3) 37... Rxb5 {[%emt 0:00:06]} 38. bxa5 {[%emt 0:00:08]} Rxa5 {[%emt 0:00:28]} 39. Rxb6+ $14 {[%emt 0:00:08] KR-KR} Kg5 {[%emt 0:00:07]} 40. Rb2 {[%emt 0:00:19]} Kf4 $2 {[%emt 0:00:32]} (40... h5 $11 {and Black has nothing to worry.}) 41. Rb4+ $18 {[%emt 0:30:28]} Ke5 {[%emt 0:30:34]} 42. a4 {[%emt 0:00:15]} Rd5+ {[%emt 0:00:00]} 43. Ke3 {[%emt 0:00:00]} (43. Kc3 $18 {Rb5 is the strong threat.} Rd6 44. a5) 43... Rd1 $16 {[%emt 0:00:00]} 44. Rb5+ {[%emt 0:00:00]} Kf6 {[%emt 0:00:00]} 45. a5 {[%emt 0:00:00] Black must now prevent Rb8.} Ra1 {[%emt 0:00:00]} 46. Kd4 {[%emt 0:00:00]} (46. g3 $142) 46... Ra2 {[%emt 0:00:00]} 47. Kc5 {[%emt 0:00:00]} ({White should play} 47. g3 $16 {aiming for Kc5.} Rxh2 48. Kc5 Rc2+ 49. Kb6) 47... Rxg2 $11 {[%emt 0:00:00]} 48. a6 {[%emt 0:00:00]} Rxh2 {[%emt 0:00:00]} 49. a7 {[%emt 0:00:00]} Ra2 {[%emt 0:00:00]} 50. Kb6 {[%emt 0:00:00] White threatens Ra5 and mate.} Rxa7 {[%emt 0:00:00]} 51. Kxa7 {[%emt 0:00:06] KR-KPP} h5 $1 {[%emt 0:00:00]} 52. Kb6 {[%emt 0:00:24] Threatening mate with Kc5.} h4 {[%emt 0:00:00]} 53. Kc5 {[%emt 0:00:27] White wants to mate with Kd4.} (53. Rc5 $5 {[%cal Rb6b5]} Kg5 54. Re5 $11) 53... Ke5 {[%emt 0:00:00]} 54. Rb8 {[%emt 0:06:59] Intending Re8+ and mate.} Kf4 $2 {[%emt 0:00:59][%mdl 8192] [#]} (54... h3 $11) 55. Kd4 {[%emt 0:00:37] White mates.} h3 {[%emt 0:00:27]} 56. Rh8 {[%emt 0:00:55]} Kg3 {[%emt 0:00:27]} 57. Ke3 {[%emt 0:01:38]} f4+ {[%emt 0:03:45]} 58. Ke2 {[%emt 0:00:10]} Kg2 {[%emt 0:00:26]} 59. Rg8+ {[%emt 0:00:42]} Kh1 {[%emt 0:02:32]} 60. Kf2 {[%emt 0:00:22]} Kh2 {[%emt 0:03:54]} 61. Rh8 {[%emt 0:00:21]} f3 {[%emt 0:00:23]} 62. Rh7 {[%emt 0:00:08] Weighted Error Value: White=0.23 (precise) /Black=0.33} 1-0

[Event "German Championship Women 2022"]
[Site "Magdeburg"]
[Date "2022.08.18"]
[Round "7.10"]
[White "Storkebaum, Ulrike"]
[Black "Voigt, Anastasia"]
[Result "0-1"]
[ECO "C44"]
[WhiteElo "1768"]
[BlackElo "1694"]
[Annotator "NA RC"]
[PlyCount "81"]
[EventDate "2022.08.14"]
[EventType "swiss"]
[EventCountry "GER"]
[SourceTitle "playchess.com"]
[Source "ChessBase"]
[SourceQuality "1"]
[TimeControl "40/5400+30:1800+30"]

1. e4 {[%emt 0:00:05]} e5 {[%emt 0:00:04]} 2. Nf3 {[%emt 0:00:04]} Nc6 {[%emt 0:00:04]} 3. d4 {[%emt 0:00:01]} exd4 {[%emt 0:00:00]} 4. Nxd4 {[%emt 0:00:07]} Nf6 {[%emt 0:00:00]} 5. Bg5 {[%emt 0:02:59]} Be7 {[%emt 0:00:49]} 6. Bxf6 {[%emt 0:06:43]} Bxf6 {[%emt 0:00:31]} 7. c3 {[%emt 0:00:09]} Qe7 {[%emt 0:00:59]} 8. Qd3 {[%emt 0:00:57]} Nxd4 {[%emt 0:01:11]} 9. cxd4 {[%emt 0:00:16]} Qb4+ {[%emt 0:00:19]} 10. Qc3 {[%emt 0:04:20]} Qxd4 {[%emt 0:00:30]} 11. Qxd4 {[%emt 0:01:07]} Bxd4 {[%emt 0:00:06]} 12. Nc3 {[%emt 0:00:03]} O-O {[%emt 0:00:19]} 13. Bd3 {[%emt 0:03:37]} d6 {[%emt 0:00:41]} 14. Rb1 {[%emt 0:00:58]} c6 {[%emt 0:00:53]} 15. Ne2 {[%emt 0:01:23]} Bb6 {[%emt 0:00:18]} 16. Ng3 {[%emt 0:02:07]} g6 {[%emt 0:00:33]} 17. O-O {[%emt 0:03:26]} Be6 {[%emt 0:00:17]} 18. b3 {[%emt 0:00:07]} Rfe8 {[%emt 0:01:16]} 19. Kh1 {[%emt 0:00:20]} d5 {[%emt 0:00:54]} 20. e5 {[%emt 0:01:09]} Bd7 {[%emt 0:02:32]} 21. f4 {[%emt 0:00:11]} Kg7 22. h3 {[%emt 0:03:40]} Re7 {[%emt 0:01:02]} 23. Rf3 {[%emt 0:03:33]} f6 {[%emt 0:00:42]} 24. exf6+ {[%emt 0:06:30]} Kxf6 {[%emt 0:00:07]} 25. f5 {[%emt 0:01:15]} Kg5 26. fxg6 {[%emt 0:14:29]} hxg6 {[%emt 0:03:00]} 27. Ne2 {[%emt 0:07:12]} Bc7 {[%emt 0:01:19]} 28. Rbf1 {[%emt 0:01:17]} Rae8 {[%emt 0:02:27]} 29. Nf4 {[%emt 0:12:13]} Bxf4 {[%emt 0:06:57]} 30. Rxf4 {[%emt 0:00:26]} Re3 {[%emt 0:00:53]} 31. R4f3 {[%emt 0:05:57]} Rxf3 {[%emt 0:00:45]} 32. Rxf3 {[%emt 0:00:29]} Kh6 {[%emt 0:01:28]} 33. Rf7 {[%emt 0:02:19]} Bc8 {[%emt 0:00:07]} 34. Kh2 {[%emt 0:02:16]} Re3 {[%emt 0:03:55]} 35. Bf1 {[%emt 0:01:41]} Re1 {[%emt 0:02:34]} 36. Rf8 {[%emt 0:04:55]} Bf5 {[%emt 0:00:26]} 37. Kg1 {[%emt 0:07:13]} Bd3 {[%emt 0:00:14]} 38. g3 {[%emt 0:00:42]} c5 {[%emt 0:01:26]} 39. Kg2 {[%emt 0:00:39]} Bxf1+ {[%emt 0:00:44]} 40. Rxf1 {[%emt 0:00:08]} Rxf1 {[%emt 0:00:18]} 41. Kxf1 {[%emt 0:30:12]} 0-1

[Event "German Championship Women 2022"]
[Site "Magdeburg"]
[Date "2022.08.18"]
[Round "7.11"]
[White "Mader, Lena"]
[Black "Peglau, Sarah"]
[Result "0-1"]
[ECO "A30"]
[WhiteElo "1826"]
[BlackElo "1782"]
[Annotator "NA RC"]
[PlyCount "72"]
[EventDate "2022.08.14"]
[EventType "swiss"]
[EventCountry "GER"]
[SourceTitle "playchess.com"]
[Source "ChessBase"]
[SourceQuality "1"]
[TimeControl "40/5400+30:1800+30"]

1. c4 {[%emt 0:00:03]} c5 {[%emt 0:00:05]} 2. Nf3 {[%emt 0:00:21]} Nc6 {[%emt 0:00:35]} 3. Nc3 {[%emt 0:00:34]} e5 {[%emt 0:03:54]} 4. d3 {[%emt 0:00:54]} d6 {[%emt 0:00:38]} 5. a3 {[%emt 0:03:20]} f5 {[%emt 0:01:08]} 6. Rb1 {[%emt 0:02:08]} a5 {[%emt 0:05:54]} 7. g3 {[%emt 0:03:56]} Nf6 {[%emt 0:03:10]} 8. Bg2 {[%emt 0:00:14]} Be7 {[%emt 0:00:36]} 9. Bd2 {[%emt 0:02:10]} O-O {[%emt 0:00:33]} 10. O-O {[%emt 0:00:05]} h6 {[%emt 0:08:43]} 11. Nh4 {[%emt 0:02:22]} Be6 {[%emt 0:02:13]} 12. Ng6 {[%emt 0:04:38]} Rf7 {[%emt 0:01:39]} 13. Nd5 {[%emt 0:08:27]} Kh7 {[%emt 0:02:29]} 14. Ngxe7 {[%emt 0:02:04]} Nxe7 {[%emt 0:00:17]} 15. Nxf6+ {[%emt 0:00:22]} Rxf6 {[%emt 0:00:37]} 16. Bxb7 {[%emt 0:00:35]} Ra7 {[%emt 0:01:07]} 17. Bg2 {[%emt 0:00:51]} f4 {[%emt 0:01:24]} 18. b4 {[%emt 0:05:25]} axb4 {[%emt 0:01:18]} 19. axb4 {[%emt 0:00:19]} cxb4 {[%emt 0:01:01]} 20. Rxb4 {[%emt 0:00:45]} Qc8 {[%emt 0:04:04]} 21. Qb1 {[%emt 0:05:17]} Ng6 {[%emt 0:06:07]} 22. Rb7 {[%emt 0:04:56]} Ra6 {[%emt 0:05:11]} 23. Rb6 {[%emt 0:05:00]} Rxb6 {[%emt 0:01:00]} 24. Qxb6 {[%emt 0:00:02]} Bh3 {[%emt 0:00:59]} 25. Qb5 {[%emt 0:07:50]} Bxg2 {[%emt 0:04:12]} 26. Kxg2 {[%emt 0:03:29]} Qg4 {[%emt 0:00:24]} 27. f3 {[%emt 0:05:09]} Nh4+ {[%emt 0:04:25]} 28. Kg1 {[%emt 0:10:23]} Qh3 {[%emt 0:04:16]} 29. Rf2 {[%emt 0:03:30]} fxg3 {[%emt 0:00:34]} 30. hxg3 {[%emt 0:00:08]} Qxg3+ {[%emt 0:02:45]} 31. Kf1 {[%emt 0:00:45]} Qh3+ {[%emt 0:08:25]} 32. Ke1 {[%emt 0:01:14]} Qh1+ {[%emt 0:00:55]} 33. Rf1 {[%emt 0:00:07]} Ng2+ {[%emt 0:01:04]} 34. Kf2 {[%emt 0:00:36]} Qh4+ {[%emt 0:00:22]} 35. Kg1 {[%emt 0:05:35]} Rg6 {[%emt 0:01:00]} 36. Rb1 {[%emt 0:00:13]} Ne3# 0-1

[Event "German Championship Women 2022"]
[Site "Magdeburg"]
[Date "2022.08.18"]
[Round "7.12"]
[White "Petersen, Sophie"]
[Black "Mekus, Manuela"]
[Result "1-0"]
[ECO "B00"]
[WhiteElo "1597"]
[BlackElo "1638"]
[Annotator "NA RC"]
[PlyCount "65"]
[EventDate "2022.08.14"]
[EventType "swiss"]
[EventCountry "GER"]
[SourceTitle "playchess.com"]
[Source "ChessBase"]
[SourceQuality "1"]
[TimeControl "40/5400+30:1800+30"]

1. e4 {[%emt 0:00:02]} d6 {[%emt 0:00:13]} 2. d4 {[%emt 0:00:06]} Nd7 {[%emt 0:00:59]} 3. Nf3 {[%emt 0:00:21]} g6 {[%emt 0:00:15]} 4. Nc3 {[%emt 0:00:28]} Bg7 {[%emt 0:00:22]} 5. Be3 {[%emt 0:00:27]} e5 {[%emt 0:07:57]} 6. dxe5 {[%emt 0:05:14]} Nxe5 {[%emt 0:01:28]} 7. Nxe5 {[%emt 0:00:16]} Bxe5 {[%emt 0:00:29]} 8. f4 {[%emt 0:04:02]} Bf6 {[%emt 0:03:25]} 9. Qd2 {[%emt 0:03:28]} Be6 {[%emt 0:14:14]} 10. O-O-O {[%emt 0:02:05]} Ne7 {[%emt 0:02:56]} 11. Bd4 {[%emt 0:02:07]} Nc6 {[%emt 0:00:41]} 12. Bxf6 {[%emt 0:04:54]} Qxf6 {[%emt 0:00:19]} 13. Nd5 {[%emt 0:00:42]} Qd8 {[%emt 0:01:01]} 14. Qc3 {[%emt 0:01:36]} f6 {[%emt 0:08:34]} 15. Nxf6+ {[%emt 0:01:28]} Kf7 {[%emt 0:01:09]} 16. e5 {[%emt 0:03:04]} Qe7 {[%emt 0:02:03]} 17. Bc4 {[%emt 0:07:24]} Rad8 {[%emt 0:07:20]} 18. Nd5 {[%emt 0:03:49]} Bxd5 {[%emt 0:14:27]} 19. Bxd5+ {[%emt 0:00:53]} Kg7 {[%emt 0:00:15]} 20. exd6+ {[%emt 0:06:13]} Qf6 {[%emt 0:00:04]} 21. Qxf6+ {[%emt 0:01:53]} Kxf6 {[%emt 0:00:01]} 22. dxc7 {[%emt 0:00:23]} Rc8 {[%emt 0:00:28]} 23. Bxc6 bxc6 {[%emt 0:00:03]} 24. Rd6+ {[%emt 0:02:11]} Kf5 {[%emt 0:00:16]} 25. Rxc6 {[%emt 0:00:27]} Kxf4 {[%emt 0:00:01]} 26. Rf1+ {[%emt 0:00:53]} Ke5 {[%emt 0:00:54]} 27. Rf7 {[%emt 0:01:32]} a5 {[%emt 0:01:48]} 28. c4 {[%emt 0:02:20]} a4 {[%emt 0:01:01]} 29. Rd7 {[%emt 0:02:13]} Kf4 {[%emt 0:03:41]} 30. Rc5 {[%emt 0:02:44]} Rhe8 {[%emt 0:00:51]} 31. Kd2 {[%emt 0:00:40]} h5 {[%emt 0:02:10]} 32. Rd4+ {[%emt 0:00:30]} Re4 {[%emt 0:00:09]} 33. Rd8 {[%emt 0:00:15]} 1-0

[Event "German Championship Women 2022"]
[Site "Magdeburg"]
[Date "2022.08.19"]
[Round "8.1"]
[White "Schulze, Lara"]
[Black "Moenster, Madita"]
[Result "0-1"]
[ECO "B51"]
[WhiteElo "2292"]
[BlackElo "1864"]
[Annotator "NA RC"]
[PlyCount "74"]
[EventDate "2022.08.14"]
[EventType "swiss"]
[EventCountry "GER"]
[SourceTitle "playchess.com"]
[Source "ChessBase"]
[SourceQuality "1"]
[TimeControl "40/5400+30:1800+30"]

1. e4 {[%emt 0:00:02]} c5 {[%emt 0:00:06]} 2. Nf3 {[%emt 0:00:04]} d6 {[%emt 0:00:07]} 3. Bb5+ {[%emt 0:00:06]} Nd7 {[%emt 0:00:10]} 4. c4 {[%emt 0:00:11]} a6 {[%emt 0:00:22]} 5. Ba4 {[%emt 0:00:27]} Ngf6 {[%emt 0:04:16]} 6. Nc3 {[%emt 0:00:15]} e6 {[%emt 0:00:28]} 7. d3 {[%emt 0:03:18]} Be7 {[%emt 0:01:05]} 8. O-O {[%emt 0:00:13]} O-O {[%emt 0:00:24]} 9. Ne1 {[%emt 0:01:44]} Ne5 {[%emt 0:08:03]} 10. f4 {[%emt 0:01:02]} Nc6 {[%emt 0:00:11]} 11. g4 {[%emt 0:04:40]} Nd7 {[%emt 0:05:19]} (11... b5 $15 {should be considered.} 12. cxb5 axb5 13. Nxb5 (13. Bxb5 Nd4 $11) 13... Bb7) 12. g5 {[%emt 0:04:35]} f5 {[%emt 0:05:19]} ({Black should try} 12... e5 $17) 13. gxf6 $11 {[%emt 0:23:30]} Nxf6 {[%emt 0:03:55]} 14. Nf3 {[%emt 0:01:12]} Bd7 {[%emt 0:11:40]} 15. Bd2 {[%emt 0:03:53]} Rb8 {[%emt 0:03:20]} 16. a3 {[%emt 0:04:17]} Qc7 {[%emt 0:08:51]} 17. Rb1 {[%emt 0:02:53]} Nd8 {[%emt 0:05:11]} 18. b4 {[%emt 0:09:08]} b5 {[%emt 0:01:29]} 19. Bb3 {[%emt 0:01:35]} Kh8 {[%emt 0:04:40]} 20. bxc5 {[%emt 0:09:22]} dxc5 {[%emt 0:00:29]} 21. f5 {[%emt 0:05:48]} exf5 {[%emt 0:04:02]} 22. e5 {[%emt 0:02:04]} Ng8 {[%emt 0:02:58]} 23. Nd5 {[%emt 0:02:38]} Qc6 {[%emt 0:01:40]} 24. Kh1 {[%emt 0:02:01]} Ne6 {[%emt 0:03:04]} 25. Qe1 {[%emt 0:02:21]} Bd8 {[%emt 0:06:25]} 26. Qg3 {[%emt 0:01:23]} Ne7 {[%emt 0:02:30]} 27. Bg5 {[%emt 0:06:03]} Ng6 {[%emt 0:01:44]} 28. h4 {[%emt 0:01:34]} Bxg5 {[%emt 0:02:32]} 29. hxg5 {[%emt 0:01:50]} f4 {[%emt 0:01:33]} 30. Qg2 {[%emt 0:02:32]} Nd4 {[%emt 0:05:40]} 31. Nxd4 {[%emt 0:01:04]} cxd4 {[%emt 0:00:07]} 32. cxb5 {[%emt 0:01:41]} Rxb5 {[%emt 0:01:51]} 33. Rbc1 {[%emt 0:00:57]} Qa8 {[%emt 0:01:30]} 34. Bc4 {[%emt 0:00:26]} Bc6 {[%emt 0:00:46]} 35. Bxb5 {[%emt 0:01:54]} Bxd5 {[%emt 0:00:13]} 36. Bc6 {[%emt 0:00:09]} Bxg2+ {[%emt 0:00:23]} 37. Kxg2 {[%emt 0:00:06]} Qd8 {[%emt 0:00:39]} 0-1